fUSD/lending_fUSD_20260109
["ID","MTS","AMOUNT","RATE_DAILY","PERIOD"]
[401156205,1767989443344,-376.90325805,0.000179,2]
[401156206,1767989443354,-500.0,0.000179,2]
[401156207,1767989443364,-500.0,0.000179,2]
[401156208,1767989443373,-500.0,0.000179,2]
[401156209,1767989443383,-500.0,0.000179,2]
[401156210,1767989443392,-500.0,0.000179,2]
[401156211,1767989443402,-500.0,0.000179,2]
[401156212,1767989443412,-500.0,0.000179,2]
[401156213,1767989443421,-500.0,0.000179,2]
[401156214,1767989443431,-500.0,0.000179,2]
[401156215,1767989443440,-500.0,0.000179,2]
[401156216,1767989443450,-500.0,0.000179,2]
[401156217,1767989443459,-500.0,0.000179,2]
[401156218,1767989443469,-500.0,0.000179,2]
[401156219,1767989443478,-500.0,0.000179,2]
[401156220,1767989443488,-500.0,0.000179,2]
[401156221,1767989443499,-500.0,0.000179,2]
[401156222,1767989443508,-500.0,0.000179,2]
[401156223,1767989443518,-500.0,0.000179,2]
[401156224,1767989443527,-500.0,0.000179,2]
[401156225,1767989443536,-500.0,0.000179,2]
[401156226,1767989443546,-7560.0,0.000179,2]
[401156227,1767989443555,-986.0,0.00017901,2]
[401156228,1767989443564,-1000.0,0.00017903,2]
[401156229,1767989443573,-1000.0,0.00017914,2]
[401156230,1767989443583,-526.0,0.00017934,2]
[401156231,1767989443592,-986.0,0.00017956,2]
[401156232,1767989443602,-161.78,0.0001796,2]
[401156233,1767989443611,-500.0,0.00017973,2]
[401156234,1767989443620,-500.0,0.00017973,2]
[401156235,1767989443630,-279.31517583,0.00017973,2]
[401156236,1767989443639,-500.0,0.00017973,2]
[401156237,1767989443649,-500.0,0.00017973,2]
[401156238,1767989443658,-500.0,0.00017973,2]
[401156239,1767989443666,-500.0,0.00017973,2]
[401156240,1767989443677,-500.0,0.00017973,2]
[401156241,1767989443686,-150.0,0.00017973,2]
[401156242,1767989443695,-500.0,0.00017973,2]
[401156243,1767989443704,-500.0,0.00017973,2]
[401156244,1767989443714,-500.0,0.00017973,2]
[401156245,1767989443723,-500.0,0.00017973,2]
[401156246,1767989443732,-500.0,0.00017973,2]
[401156247,1767989443742,-609.94892981,0.00017973,2]
[401156248,1767989443751,-500.0,0.00017973,2]
[401156249,1767989443761,-195.06667749,0.00017973,2]
[401156250,1767989443771,-515.27642925,0.00017973,2]
[401156251,1767989443780,-168.53464326,0.00017973,2]
[401156252,1767989443789,-500.0,0.00017973,2]
[401156253,1767989443799,-500.0,0.00017973,2]
[401156254,1767989443809,-500.0,0.00017973,2]
[401156255,1767989443818,-500.0,0.00017973,2]
[401156256,1767989443827,-500.0,0.00017973,2]
[401156257,1767989443837,-500.0,0.00017973,2]
[401156258,1767989443847,-500.0,0.00017973,2]
[401156259,1767989443857,-500.0,0.00017973,2]
[401156260,1767989443866,-500.0,0.00017973,2]
[401156261,1767989443875,-500.0,0.00017973,2]
[401156262,1767989443884,-500.0,0.00017973,2]
[401156263,1767989443894,-286.84842062,0.00017973,2]
[401156264,1767989443903,-500.0,0.00017973,2]
[401156265,1767989443912,-500.0,0.00017973,2]
[401156266,1767989443921,-500.0,0.00017973,2]
[401156267,1767989443930,-501.05787152,0.00017973,2]
[401156269,1767989443939,-500.0,0.00017973,2]
[401156271,1767989443949,-500.0,0.00017973,2]
[401156273,1767989443958,-500.0,0.00017973,2]
[401156275,1767989443967,-500.0,0.00017973,2]
[401156276,1767989443976,-182.86859792,0.00017973,2]
[401156277,1767989443985,-500.0,0.00017973,2]
[401156278,1767989443995,-500.0,0.00017973,2]
[401156279,1767989444004,-500.0,0.00017973,2]
[401156280,1767989444014,-546.15438132,0.00017973,2]
[401156281,1767989444023,-500.0,0.00017973,2]
[401156282,1767989444034,-500.0,0.00017973,2]
[401156283,1767989444043,-165.3256661,0.00017973,2]
[401156284,1767989444053,-208.06887662,0.00017973,2]
[401156285,1767989444062,-500.0,0.00017973,2]
[401156286,1767989444072,-398.03125352,0.00017973,2]
[401156287,1767989444081,-500.0,0.00017973,2]
[401156288,1767989444091,-500.0,0.00017973,2]
[401156289,1767989444408,-554.86072459,0.00017973,2]
[401156290,1767989444421,-500.0,0.00017973,2]
[401156291,1767989444431,-500.0,0.00017973,2]
[401156292,1767989444440,-500.0,0.00017973,2]
[401156293,1767989444450,-500.0,0.00017973,2]
[401156294,1767989444459,-500.0,0.00017973,2]
[401156295,1767989444469,-500.0,0.00017973,2]
[401156296,1767989444479,-152.75103688,0.00017982,2]
[401156297,1767989444488,-500.0,0.00017982,2]
[401156298,1767989444498,-251.24853456,0.0001799,2]
[401156299,1767989444507,-251.24853456,0.0001799,2]
[401156300,1767989444517,-1000.0,0.00017999,2]
[401156301,1767989444526,-150.0,0.00017999,2]
[401156302,1767989444536,-1672.834968,0.00017999,2]
[401156303,1767989444545,-10209.8179136,0.00017999,2]
[401156304,1767989444554,-5355.152576,0.00017999,2]
[401156305,1767989444563,-1006.3197,0.00017999,2]
[401156306,1767989444575,-300.0,0.00017999,2]
[401156307,1767989444584,-290332.707717,0.00017999,2]
[401156308,1767989444594,-4473.5547013,0.00017999,2]
[401156309,1767989444603,-8391.4955624,0.00017999,2]
[401156310,1767989444612,-300.0,0.00017999,2]
[401156311,1767989444621,-9802.0230376,0.00017999,2]
[401156312,1767989444631,-666.0,0.00017999,2]
[401156313,1767989444640,-25710.7863383,0.00017999,2]
[401156314,1767989444650,-300.0,0.00017999,2]
[401156315,1767989444660,-666.0,0.00017999,2]
[401156316,1767989444669,-39953.321477,0.00017999,2]
[401156317,1767989444679,-300.0,0.00017999,2]
[401156318,1767989444688,-977.952103,0.00017999,2]
[401156319,1767989444697,-666.0,0.00017999,2]
[401156320,1767989444707,-150.0,0.00017999,2]
[401156321,1767989444716,-10302.1631709,0.00017999,2]
[401156322,1767989444725,-300.0,0.00017999,2]
[401156323,1767989444734,-666.0,0.00017999,2]
[401156324,1767989444744,-151.0,0.00017999,2]
[401156325,1767989444754,-151.0,0.00017999,2]
[401156326,1767989444764,-769.26786,0.00017999,2]
[401156327,1767989444773,-151.0,0.00017999,2]
[401156328,1767989444783,-769.26786,0.00017999,2]
[401156329,1767989444793,-769.26786,0.00017999,2]
[401156330,1767989444802,-151.0,0.00017999,2]
[401156331,1767989444811,-769.26786,0.00017999,2]
[401156332,1767989444820,-1023389.70758746,0.00018,2]
[401156333,1767989444875,-273.7979536,0.00018,2]
[401156337,1767989445619,-675.65711572,0.00015186,2]
[401156338,1767989445629,-362.74276428,0.00017672,2]
[401156339,1767989445788,-151.0,0.00015959,2]
[401156340,1767989445798,-151.0,0.00015959,2]
[401156341,1767989445807,-104.09723572,0.00017672,2]
[401156342,1767989445817,-174.060635,0.00017999,2]
[401156343,1767989445826,-174.060635,0.00017999,2]
[401156344,1767989445835,-272913.13180184,0.00018,2]
[401156345,1767989445847,-297376.38916262,0.00018,2]
[401156346,1767989445864,-423.97259452,0.00018,2]
[401156348,1767989445900,-72203.0,0.00018,2]
[401156351,1767989446364,-675.65711572,0.00017593,2]
[401156352,1767989446374,-10478.70758263,0.000179,2]
[401156353,1767989446390,-275.99999997,0.000179,2]
[401156354,1767989446431,-4512.10947972,0.000179,2]
[401156355,1767989446502,-5016.03760138,0.000179,2]
[401156482,1767989487758,1930.42030992,0.000202,30]
[401156484,1767990334263,467.37,0.00011,2]
[401156485,1767990352843,42664.2615457,0.0001055,2]
[401156486,1767990355313,-280.65444972,0.0001055,2]
[401156487,1767990360144,8478.34,8e-05,2]
[401156488,1767990360165,8023.7744979,8e-05,2]
[401156489,1767990488769,-56.71602863,0.0001055,2]
[401156490,1767990488803,-195.0,0.00011078,2]
[401156491,1767990488837,-250.0,0.00011605,2]
[401156492,1767990488871,-250.0,0.00011605,2]
[401156493,1767990488906,-195.0,0.00011605,2]
[401156494,1767990489008,-106.56794274,0.00011605,2]
[401156495,1767990495733,1349.84,7.226e-05,2]
[401156496,1767990495926,626.3855021,7.591e-05,2]
[401156497,1767990495947,723.4544979,7.591e-05,2]
[401156498,1767990496504,1349.84,7.957e-05,2]
[401156499,1767990496635,1349.84,8.322e-05,2]
[401156500,1767990496806,1349.84,8.687e-05,2]
[401156501,1767990496960,1349.84,9.053e-05,2]
[401156502,1767990497124,1349.84,9.418e-05,2]
[401156503,1767990497364,1349.84,9.784e-05,2]
[401156504,1767990497589,385.97049723,0.00010149,2]
[401156505,1767990497612,963.86950277,0.00010149,2]
[401156507,1767990500113,-303.05554958,0.00010514,2]
[401156508,1767990502173,-257.47850945,0.00010514,2]
[401156510,1767990508480,-311.8925321,0.00010514,2]
[401156511,1767990513402,-340.26343159,0.00010514,2]
[401156514,1767990564165,-137.14997728,0.00010514,2]
[401156515,1767990564187,-250.0,0.00010697,2]
[401156516,1767990564208,-826.29627622,0.0001088,2]
[401156524,1767990631600,-523.54372378,0.0001088,2]
[401156525,1767990631610,-239.0,0.0001088,2]
[401156526,1767990631619,-1022.36596608,0.00011245,2]
[401156527,1767990631631,-327.47403392,0.00011245,2]
[401156528,1767990631642,-250.0,0.00011566,2]
[401156529,1767990631652,-193.43205726,0.00011605,2]
[401156531,1767990631662,-1349.84,0.00011611,2]
[401156533,1767990631672,-83.67421874,0.00011968,2]
[401156535,1767990637566,-166.32578126,0.00011968,2]
[401156536,1767990637579,-750.27924295,0.00011976,2]
[401156537,1767990637591,-599.56075705,0.00011976,2]
[401156538,1767990637601,-1349.84,0.00012341,2]
[401156539,1767990637611,-1180.30061795,0.00012707,2]
[401156540,1767990637691,-169.53938205,0.00012707,2]
[401156541,1767990637701,-702.10361795,0.00012765,2]
[401156542,1767990637712,-497.89638205,0.00012765,2]
[401156543,1767990637722,-300.0,0.00012766,2]
[401156544,1767990637731,-252.69643047,0.00013072,2]
[401156545,1767990637743,-402.79923305,0.00013072,2]
[401156546,1767990637785,-694.34433648,0.00013072,2]
[401156547,1767990637795,-300.0,0.00013437,2]
[401156548,1767990637804,-300.0,0.00013437,2]
[401156549,1767990637814,-300.0,0.00013437,2]
[401156550,1767990637823,-1349.84,0.00013438,2]
[401156551,1767990637834,-1349.84,0.00013803,2]
[401156553,1767990637843,-1680.0,0.00014041,2]
[401156554,1767990637853,-177.41377295,0.00014105,2]
[401156556,1767990637863,-1520.1,0.00014154,2]
[401156557,1767990637872,-1349.84,0.00014168,2]
[401156558,1767990637882,-1308.55,0.00014205,2]
[401156559,1767990637891,-999.0,0.00014223,3]
[401156561,1767990637900,-200.0,0.00014413,2]
[401156562,1767990637911,-342.05,0.0001459,2]
[401156563,1767990637921,-420.0,0.00014729,2]
[401156564,1767990637930,-420.0,0.00014729,2]
[401156565,1767990637942,-500.0,0.00014763,2]
[401156566,1767990637951,-500.0,0.00014763,2]
[401156567,1767990637960,-500.0,0.00014763,2]
[401156568,1767990637969,-500.0,0.00014763,2]
[401156569,1767990637978,-500.0,0.00014763,2]
[401156570,1767990637987,-500.0,0.00014763,2]
[401156571,1767990637996,-500.0,0.00014763,2]
[401156572,1767990638006,-500.0,0.00014763,2]
[401156573,1767990638015,-500.0,0.00014763,2]
[401156574,1767990638024,-1506.7,0.00014902,2]
[401156575,1767990638033,-334.57272477,0.0001495,2]
[401156576,1767990638042,-278.76638507,0.00014951,2]
[401156577,1767990638052,-1239.30211522,0.00014951,2]
[401156578,1767990638061,-1239.30211522,0.00014951,2]
[401156579,1767990638071,-150.0,0.00014951,2]
[401156580,1767990638081,-20791.2928276,0.00014951,2]
[401156581,1767990638090,-500.0,0.00014978,2]
[401156582,1767990638099,-195.28664324,0.00014978,2]
[401156583,1767990638108,-184.1101638,0.00014978,2]
[401156584,1767990638118,-226.26935628,0.00014978,2]
[401156585,1767990638127,-174.2279283,0.00014978,2]
[401156586,1767990638137,-324603.59314741,0.00014979,2]
[401156589,1767990639902,-373.81250183,0.00014979,2]
[401156591,1767990639963,-3157.35961954,0.00014979,2]
[401156592,1767990639996,-671865.23473122,0.00014979,2]
[401156593,1767990640005,-150.0,0.00015051,2]
[401156594,1767990640015,-200.0,0.0001507,2]
[401156595,1767990640026,-500.0,0.0001507,2]
[401156596,1767990640036,-500.0,0.0001507,2]
[401156597,1767990640045,-500.0,0.0001507,2]
[401156598,1767990640055,-500.0,0.0001507,2]
[401156599,1767990640065,-500.0,0.0001507,2]
[401156600,1767990640076,-500.0,0.0001507,2]
[401156601,1767990640086,-500.0,0.0001507,2]
[401156602,1767990640095,-151.0,0.0001507,2]
[401156603,1767990640107,-151.0,0.0001507,2]
[401156604,1767990640116,-500.0,0.0001507,2]
[401156605,1767990640126,-151.0,0.0001507,2]
[401156606,1767990640135,-500.0,0.0001507,2]
[401156607,1767990640144,-151.0,0.0001507,2]
[401156608,1767990640153,-500.0,0.0001507,2]
[401156609,1767990640162,-151.0,0.0001507,2]
[401156610,1767990640171,-500.0,0.0001507,2]
[401156611,1767990640180,-200.0,0.0001507,2]
[401156612,1767990640190,-151.0,0.0001507,2]
[401156613,1767990640199,-500.0,0.0001507,2]
[401156614,1767990640208,-151.0,0.0001507,2]
[401156615,1767990640218,-500.0,0.0001507,2]
[401156616,1767990640227,-151.0,0.0001507,2]
[401156617,1767990640236,-500.0,0.0001507,2]
[401156618,1767990640245,-151.0,0.0001507,2]
[401156619,1767990640254,-500.0,0.0001507,2]
[401156620,1767990640264,-151.0,0.0001507,2]
[401156621,1767990640273,-500.0,0.0001507,2]
[401156622,1767990640283,-500.0,0.0001507,2]
[401156623,1767990640292,-151.0,0.0001507,2]
[401156624,1767990640302,-500.0,0.0001507,2]
[401156625,1767990640312,-151.0,0.0001507,2]
[401156626,1767990640322,-500.0,0.0001507,2]
[401156627,1767990640333,-151.0,0.0001507,2]
[401156628,1767990640342,-151.56294487,0.0001507,2]
[401156629,1767990640354,-626.22881488,0.0001507,2]
[401156630,1767990640373,-151.0,0.0001507,2]
[401156631,1767990640382,-151.0,0.0001507,2]
[401156632,1767990640393,-151.0,0.0001507,2]
[401156633,1767990640403,-151.0,0.0001507,2]
[401156634,1767990640415,-151.0,0.0001507,2]
[401156635,1767990640425,-151.0,0.0001507,2]
[401156636,1767990640434,-151.0,0.0001507,2]
[401156637,1767990640443,-151.0,0.0001507,2]
[401156638,1767990640453,-151.0,0.0001507,2]
[401156639,1767990640462,-151.0,0.0001507,2]
[401156640,1767990640474,-151.0,0.0001507,2]
[401156641,1767990640484,-151.0,0.0001507,2]
[401156642,1767990640494,-1000.0,0.00015078,2]
[401156643,1767990640504,-776.6986,0.00015079,2]
[401156644,1767990640514,-236.5897,0.00015079,2]
[401156645,1767990640524,-511.43021314,0.00015079,2]
[401156646,1767990640533,-3072.247,0.00015079,2]
[401156647,1767990640543,-183.506,0.00015079,2]
[401156648,1767990640553,-19131.89519964,0.00015079,2]
[401156649,1767990640563,-500.0,0.00015107,2]
[401156650,1767990640572,-755.5,0.0001511,2]
[401156651,1767990640583,-957.6,0.0001517,2]
[401156652,1767990640593,-500.0,0.00015178,2]
[401156653,1767990640602,-500.0,0.00015178,2]
[401156654,1767990640611,-549.36394183,0.00015178,2]
[401156655,1767990640621,-503.22916224,0.00015178,2]
[401156656,1767990640630,-573.37968592,0.00015178,2]
[401156657,1767990640640,-500.0,0.00015178,2]
[401156658,1767990640649,-500.0,0.00015178,2]
[401156659,1767990640659,-500.0,0.00015178,2]
[401156660,1767990640669,-500.0,0.00015178,2]
[401156661,1767990640678,-500.0,0.00015178,2]
[401156662,1767990640687,-556.51,0.00015178,2]
[401156663,1767990640697,-500.0,0.00015178,2]
[401156664,1767990640706,-178.26,0.00015178,2]
[401156665,1767990640717,-500.0,0.00015178,2]
[401156666,1767990640726,-500.0,0.00015178,2]
[401156667,1767990640736,-500.0,0.00015178,2]
[401156668,1767990640745,-500.0,0.00015178,2]
[401156669,1767990640754,-500.0,0.00015178,2]
[401156670,1767990640763,-500.0,0.00015178,2]
[401156671,1767990640772,-500.0,0.00015178,2]
[401156672,1767990640782,-568.66331461,0.00015178,2]
[401156673,1767990640791,-500.0,0.00015178,2]
[401156674,1767990640800,-500.0,0.00015178,2]
[401156675,1767990640809,-500.0,0.00015178,2]
[401156676,1767990640818,-500.0,0.00015178,2]
[401156677,1767990640827,-500.0,0.00015178,2]
[401156678,1767990640836,-398.9473792,0.00015178,2]
[401156679,1767990640845,-500.0,0.00015178,2]
[401156680,1767990640855,-1000.0,0.00015179,2]
[401156681,1767990640864,-33584.3474,0.00015179,2]
[401156682,1767990640874,-20791.29282754,0.00015279,2]
[401156683,1767990640883,-150.0,0.00015286,2]
[401156684,1767990640894,-500.0,0.00015286,2]
[401156685,1767990640903,-150.0,0.00015286,2]
[401156686,1767990640913,-150.0,0.00015286,2]
[401156687,1767990640922,-500.0,0.00015286,2]
[401156688,1767990640933,-150.0,0.00015286,2]
[401156689,1767990640943,-500.0,0.00015286,2]
[401156690,1767990640952,-151.10085397,0.00015286,2]
[401156691,1767990640962,-986.0,0.00015286,2]
[401156692,1767990640972,-500.0,0.00015286,2]
[401156693,1767990640981,-500.0,0.00015286,2]
[401156694,1767990640990,-682.0,0.00015286,2]
[401156695,1767990640999,-1000.0,0.0001531,2]
[401156696,1767990641008,-908.10299042,0.0001531,2]
[401156697,1767990641018,-1112.33615182,0.0001531,2]
[401156698,1767990641027,-1000.0,0.0001531,2]
[401156699,1767990641036,-821.53609261,0.0001531,2]
[401156700,1767990641046,-1000.0,0.0001531,2]
[401156701,1767990641055,-500.0,0.0001531,2]
[401156702,1767990641064,-1000.0,0.0001531,2]
[401156703,1767990641073,-1000.0,0.0001531,2]
[401156704,1767990641083,-200.0,0.00015325,2]
[401156705,1767990641093,-500.0,0.00015341,2]
[401156706,1767990641104,-150.0,0.00015341,2]
[401156707,1767990641113,-150.0,0.00015341,2]
[401156708,1767990641123,-150.0,0.00015341,2]
[401156709,1767990641132,-500.0,0.00015341,2]
[401156710,1767990641142,-150.32834793,0.00015341,2]
[401156711,1767990641152,-500.0,0.00015341,2]
[401156712,1767990641161,-986.0,0.00015341,2]
[401156713,1767990641170,-500.0,0.00015341,2]
[401156714,1767990641180,-500.0,0.00015341,2]
[401156715,1767990641189,-682.0,0.00015341,2]
[401156716,1767990641198,-1239.30211515,0.00015372,2]
[401156717,1767990641207,-1239.30211515,0.00015372,2]
[401156718,1767990641216,-19131.89519964,0.00015392,2]
[401156719,1767990641225,-477.21977526,0.00015396,2]
[401156720,1767990641234,-150.0,0.00015396,2]
[401156721,1767990641243,-150.0,0.00015396,2]
[401156722,1767990641252,-284.45106114,0.00015396,2]
[401156723,1767990641261,-275.7864976,0.00015396,2]
[401156724,1767990641270,-490.93864057,0.00015396,2]
[401156725,1767990641280,-986.0,0.00015396,2]
[401156726,1767990641290,-500.0,0.00015396,2]
[401156727,1767990641300,-500.0,0.00015396,2]
[401156728,1767990641310,-682.0,0.00015396,2]
[401156729,1767990641319,-278.76638506,0.0001543,2]
[401156730,1767990641329,-957.6,0.00015444,2]
[401156731,1767990641338,-2351.0,0.00015445,2]
[401156732,1767990641348,-200.81420272,0.0001545,2]
[401156733,1767990641357,-150.0,0.0001545,2]
[401156734,1767990641367,-986.0,0.0001545,2]
[401156735,1767990641376,-500.0,0.0001545,2]
[401156736,1767990641385,-500.0,0.0001545,2]
[401156737,1767990641395,-682.0,0.0001545,2]
[401156738,1767990641405,-150.0,0.00015505,2]
[401156739,1767990641417,-986.0,0.00015505,2]
[401156740,1767990641432,-517.05568559,0.00015505,2]
[401156741,1767990641442,-638.95224088,0.00015505,2]
[401156742,1767990641452,-682.0,0.00015505,2]
[401156743,1767990641462,-151.0,0.0001553,2]
[401156744,1767990641474,-151.0,0.0001553,2]
[401156745,1767990641488,-151.0,0.00015537,2]
[401156746,1767990641505,-151.0,0.00015537,2]
[401156747,1767990641516,-511.43021308,0.00015549,2]
[401156748,1767990641527,-178.73,0.0001556,2]
[401156749,1767990641536,-986.0,0.0001556,2]
[401156750,1767990641546,-682.0,0.0001556,2]
[401156751,1767990641556,-20791.29282754,0.00015606,2]
[401156752,1767990641566,-986.0,0.00015615,2]
[401156753,1767990641577,-682.0,0.00015615,2]
[401156754,1767990641586,-200.0,0.00015618,2]
[401156755,1767990641595,-330.0939675,0.00015618,2]
[401156756,1767990641605,-250.0,0.00015625,2]
[401156757,1767990641615,-986.0,0.0001567,2]
[401156758,1767990641625,-682.0,0.0001567,2]
[401156759,1767990641634,-19131.89519964,0.00015706,2]
[401156760,1767990641643,-957.6,0.00015718,2]
[401156761,1767990641653,-986.0,0.00015724,2]
[401156762,1767990641662,-682.0,0.00015724,2]
[401156763,1767990641671,-986.0,0.00015779,2]
[401156764,1767990641680,-682.0,0.00015779,2]
[401156765,1767990641689,-376.87280184,0.00015784,2]
[401156766,1767990641699,-1239.30211515,0.00015794,2]
[401156767,1767990641709,-1239.30211515,0.00015794,2]
[401156768,1767990641718,-986.0,0.00015834,2]
[401156769,1767990641728,-682.0,0.00015834,2]
[401156770,1767990641737,-500.0,0.00015858,2]
[401156771,1767990641746,-500.0,0.00015858,2]
[401156772,1767990641755,-500.0,0.00015858,2]
[401156773,1767990641764,-1471.2634171,0.00015858,2]
[401156774,1767990641774,-500.0,0.00015858,2]
[401156775,1767990641783,-755.5,0.00015865,2]
[401156776,1767990641793,-986.0,0.00015889,2]
[401156777,1767990641802,-682.0,0.00015889,2]
[401156778,1767990641811,-636.57453685,0.000159,2]
[401156779,1767990641820,-636.57453684,0.000159,2]
[401156780,1767990641830,-636.57453684,0.000159,2]
[401156781,1767990641839,-636.57453684,0.000159,2]
[401156782,1767990641848,-636.57453684,0.000159,2]
[401156783,1767990641857,-636.57453684,0.000159,2]
[401156784,1767990641867,-278.76638506,0.00015908,2]
[401156785,1767990641876,-376.90325807,0.00015908,2]
[401156786,1767990641886,-20791.29282754,0.00015934,2]
[401156787,1767990641896,-986.0,0.00015944,2]
[401156788,1767990641905,-682.0,0.00015944,2]
[401156789,1767990641915,-161.78,0.00015958,2]
[401156790,1767990641924,-957.6,0.00015992,2]
[401156791,1767990641934,-986.0,0.00015998,2]
[401156792,1767990641943,-682.0,0.00015998,2]
[401156793,1767990641952,-150.0,0.00015998,2]
[401156794,1767990641962,-927905.70750805,0.00016,4]
[401156795,1767990641971,-236.32001256,0.00016008,2]
[401156796,1767990641980,-582.66868607,0.00016018,2]
[401156797,1767990641990,-511.43021308,0.00016019,2]
[401156798,1767990641999,-19131.89519964,0.00016019,2]
[401156799,1767990642008,-986.0,0.00016053,2]
[401156800,1767990642017,-682.0,0.00016053,2]
[401156801,1767990642027,-986.0,0.00016108,2]
[401156802,1767990642036,-682.0,0.00016108,2]
[401156803,1767990642045,-587.0,0.00016146,2]
[401156804,1767990642055,-986.0,0.00016163,2]
[401156805,1767990642064,-682.0,0.00016163,2]
[401156806,1767990642073,-200.0,0.00016166,2]
[401156807,1767990642083,-150.0,0.000162,2]
[401156808,1767990642093,-5000.00546761,0.000162,5]
[401156809,1767990642102,-1239.30211515,0.00016215,2]
[401156810,1767990642112,-986.0,0.00016218,2]
[401156811,1767990642121,-682.0,0.00016218,2]
[401156812,1767990642131,-957.6,0.00016266,2]
[401156813,1767990642140,-986.0,0.00016272,2]
[401156814,1767990642150,-682.0,0.00016272,2]
[401156815,1767990642159,-4190.04146354,0.00016282,2]
[401156816,1767990642168,-1000.0,0.00016326,2]
[401156817,1767990642178,-986.0,0.00016327,2]
[401156818,1767990642188,-682.0,0.00016327,2]
[401156819,1767990642197,-19131.89519964,0.00016333,2]
[401156820,1767990642207,-986.0,0.00016382,2]
[401156821,1767990642216,-682.0,0.00016382,2]
[401156822,1767990642226,-986.0,0.00016437,2]
[401156823,1767990642235,-682.0,0.00016437,2]
[401156824,1767990642245,-14813.19,0.00016438,2]
[401156825,1767990642254,-800.0,0.00016438,2]
[401156826,1767990642265,-42357.89442809,0.00016479,2]
[401156827,1767990642274,-511.43021308,0.0001649,2]
[401156828,1767990642284,-986.0,0.00016491,2]
[401156829,1767990642293,-682.0,0.00016491,2]
[401156830,1767990642303,-957.6,0.0001654,2]
[401156831,1767990642312,-1008.63471863,0.00016546,2]
[401156832,1767990642322,-688.02140532,0.00016546,2]
[401156833,1767990642333,-4190.04146351,0.00016606,2]
[401156834,1767990642343,-755.5,0.00016621,2]
[401156835,1767990642352,-19131.89519964,0.00016646,2]
[401156836,1767990642362,-957.6,0.00016814,2]
[401156837,1767990642372,-933.68,0.0001685,2]
[401156839,1767990642382,-376.90325805,0.00016904,2]
[401156840,1767990642391,-535.58,0.00016922,2]
[401156841,1767990642401,-150.99,0.00016922,2]
[401156842,1767990642411,-3227.31,0.00016922,2]
[401156843,1767990642421,-9999.99,0.00016922,2]
[401156844,1767990642430,-299.99,0.00016922,4]
[401156845,1767990642440,-150.99,0.00016922,2]
[401156846,1767990642450,-4800.86,0.00016922,2]
[401156847,1767990642459,-9999.99,0.00016922,2]
[401156848,1767990642471,-4190.04146351,0.00016929,2]
[401156849,1767990642484,-511.43021308,0.0001696,2]
[401156850,1767990642495,-19131.89519964,0.0001696,2]
[401156851,1767990642504,-50546.06,0.00016986,2]
[401156852,1767990642515,-3292.0,0.0001699,2]
[401156853,1767990642525,-193.43465493,0.00017,2]
[401156854,1767990642534,-957.6,0.00017088,2]
[401156855,1767990642545,-1001.92487185,0.00017092,2]
[401156856,1767990642555,-500.0,0.00017099,2]
[401156857,1767990642564,-1000.0,0.00017099,2]
[401156858,1767990642574,-500.0,0.00017099,2]
[401156859,1767990642584,-1000.0,0.00017099,2]
[401156860,1767990642594,-500.0,0.00017099,2]
[401156861,1767990642603,-1000.0,0.00017099,2]
[401156862,1767990642612,-500.0,0.00017099,2]